Cogmind - Beta 12 @@@ ROGUE MODE // 2023.09.17 @ 21:22:07 Player: david Result: Destroyed by G-34 Mercenary with Small Laser Performance ------------- Evolutions (0) 0 Regions Visited (1) 200 Robots Destroyed (26) 130 Value Destroyed (328) 328 Prototype IDs (0) 0 Alien Tech Used (0) 0 Bonus (0) 0 TOTAL SCORE: 658 Bonus ------- None Cogmind --------- Core Integrity 0/250 Matter 300/300 Energy 91/160 System Corruption 4% Temperature Cool (8) Movement Walking (120) Location -10/Materials Parts ------- > --- POWER (1) -------- Light Nuclear Core > --- PROPULSION (2) --- Aluminum Leg Aluminum Leg > --- UTILITY (2) ------ Improved Heat Sink Visual Processing Unit > --- WEAPON (2) ------- Light EM Pulse Cannon (fused) > --- INVENTORY (5) ---- Flight Unit Signal Interpreter Improved Terrain Scanner Peak State ------------ > --- POWER ------------ Light Nuclear Core > --- PROPULSION ------- Aluminum Leg Aluminum Leg > --- UTILITY ---------- Improved Heat Sink Visual Processing Unit > --- WEAPON ----------- Light EM Pulse Cannon > --- INVENTORY -------- Light Ion Engine Flight Unit Improved Terrain Scanner Assault Rifle [Rating: 12] Favorites ----------- Power Light Ion Engine Engine Light Ion Engine Power Core Light Nuclear Core Propulsion Compact Wheel Treads Light Treads Leg Aluminum Leg Wheel Compact Wheel Hover Unit Hover Unit Flight Unit Flight Unit Utility Improved Terrain Scanner Device Improved Terrain Scanner Storage Small Storage Unit Processor Visual Processing Unit Weapon Assault Rifle Energy Cannon Light EM Pulse Cannon Ballistic Gun Assault Rifle Special Weapon Mining Laser Build | -11 -10 ------- Run | Jun Mat Slots Evolved . | . . Power . | . . Propulsion . | . . Utility . | . . Weapon . | . . Parts Attached 47 | 23 24 Power 8 | 5 3 Engine 7 | 5 2 Core 1 | . 1 Reactor . | . . Propulsion 17 | 4 13 Treads 2 | 1 1 Leg 5 | 1 4 Wheel 5 | 2 3 Hover 1 | . 1 Flight 4 | . 4 Utility 11 | 7 4 Device 5 | 4 1 Storage 4 | 3 1 Processor 2 | . 2 Hackware . | . . Protection . | . . Artifact . | . . Weapon 11 | 7 4 Energy Gun . | . . Energy Cannon 2 | . 2 Ballistic Gun 7 | 5 2 Ballistic Cannon . | . . Launcher . | . . Special Weapon 2 | 2 . Impact Weapon . | . . Slashing Weapon . | . . Piercing Weapon . | . . Special Melee Weapon . | . . Unidentified Prototypes . | . . Parts Lost 2 | 1 1 Power . | . . Propulsion 1 | . 1 Utility . | . . Weapon 1 | 1 . Highest Loss Streak 1 | 1 1 To Critical Strikes . | . . Average Slot Usage (%) 86 | . 86 Engine 9 | . 9 Core 4 | . 4 Leg 9 | . 9 Wheel 11 | . 11 Hover 2 | . 2 Device 11 | . 11 Storage 6 | . 6 Processor 10 | . 10 Energy Cannon 7 | . 7 Ballistic Gun 12 | . 12 Naked Turns . | . . Heaviest Build 29 | 13 29 Greatest Support 32 | 32 32 Greatest Overweight (x) 2 | 2 2 Average Overweight (x) . | . . Largest Inventory Capacity 15 | 8 15 Average Capacity 8 | 7 9 Most Carried 7 | 5 7 Average Carried 3 | 3 4 Final Capacity 8 | 8 5 Final Carried 4 | 4 3 Class Distribution -------------------- 84% | Mutant 15% | Scavenger-Mutant Dominant Class ---------------- Mutant | -10/Materials Resources | -11 -10 ----------- Run | Jun Mat Matter Collected 913 | 562 351 Remotely 41 | 41 . Salvage Created 726 | 282 444 Parts 55 | 25 30 Haulers Intercepted . | . . Recyclers Shooed 1 | . 1 Parts Field Recycled . | . . Retrieved Matter . | . . Parts Self-Destructed . | . . Prevented . | . . Kills | -11 -10 ------- Run | Jun Mat Combat Hostiles Destroyed 7 | . 7 Guns 4 | . 4 Cannons 3 | . 3 Classes Destroyed 7 | 3 4 Worker 5 | 4 1 Builder 1 | . 1 Tunneler 8 | 7 1 Recycler 2 | 1 1 Watcher 3 | . 3 Swarmer 3 | . 3 Grunt 4 | . 4 Best Kill Streak 3 | 2 3 Combat Bots Only 3 | . 3 Max Kills in Single Turn 1 | 1 1 Gunslinging . | . . Exploded . | . . Melee . | . . Uniques/NPCs Destroyed . | . . Combat | -11 -10 -------- Run | Jun Mat Damage Taken 647 | 224 423 Core 250 | 104 146 Absorbed by Shields . | . . Core Remaining (%) 58 | 58 . Volleys Fired 107 | 54 53 Largest 2 | 2 1 Hottest 100 | 100 56 Shots Fired 136 | 83 53 Gun 82 | 59 23 Cannon 30 | . 30 Launcher . | . . Special 24 | 24 . Kinetic 82 | 59 23 Thermal 24 | 24 . Explosive . | . . Electromagnetic 30 | . 30 Robot Hit Streak 8 | 8 5 Robot Miss Streak 4 | 4 4 Penetration Max . | . . Secondary Targets . | . . Shots Hit Robots 53 | 26 27 Core Hits 33 | 16 17 Critical Kills . | . . Critical Parts Destroyed . | . . Critical Strikes . | . . Melee Attacks . | . . Impact . | . . Slashing . | . . Piercing . | . . Sneak Attacks . | . . Combat Hostiles . | . . Follow-up Attacks . | . . Damage Inflicted 882 | 277 605 Guns 374 | 253 121 Cannons 415 | . 415 Explosions 69 | . 69 Melee . | . . Ramming . | . . Kinetic 374 | 253 121 Thermal 93 | 24 69 Explosive . | . . Electromagnetic 415 | . 415 Impact . | . . Slashing . | . . Piercing . | . . Highest Corruption 4 | 4 4 Average Corruption 4 | 4 4 Corruption Purged . | . . Corruption Blocked . | . . Effects 24 | 10 14 Message Errors 8 | 3 5 Matter Fused 8 | 5 3 Heat Flow Errors 1 | 1 . Energy Discharges 1 | . 1 Parts Fused 2 | 1 1 Data Loss (minor) 4 | . 4 Overload Shots . | . . Overflow Damage . | . . Projectiles . | . . Explosions . | . . Melee . | . . Knockbacks . | . . Impact . | . . Kinetic . | . . Secondary . | . . Self-Inflicted Damage . | . . Shots . | . . Rammed . | . . Targets Rammed . | . . Kicked . | . . Crushed . | . . Highest Temperature 169 | 169 64 Average Temperature 53 | 66 19 Received Heat Transfer 186 | . 186 Siege Activations . | . . Robots Corrupted . | . . Combat Hostiles . | . . Parts Fried 2 | . 2 Impact Corruptions . | . . Robots Melted . | . . Combat Hostiles . | . . Parts Melted . | . . Heat Transferred 150 | 50 100 Parts Sabotaged . | . . Parts Stolen . | . . Parts Stripped . | . . Power Chain Reactions 1 | . 1 Missiles Intercepted . | . . Alert | -11 -10 ------- Run | Jun Mat Peak Influence 219 | 30 219 Initial 3 | . 3 Average 43 | 15 80 Maximum Alert Level 1 | . 1 Low Security (%) 99 | 100 98 Level 1 . | . 1 Level 2 . | . . Level 3 . | . . Level 4 . | . . Level 5 . | . . High Security . | . . Max Security . | . . Squads Dispatched 1 | . 1 Investigation 1 | . 1 Extermination . | . . Reinforcement . | . . Assault . | . . Garrison . | . . Intercept . | . . Searches Triggered . | . . Construction Impeded . | . . Haulers Reinforced . | . . Active Scanning Responses . | . . Cargo Convoy Interrupts . | . . Stealth | -11 -10 --------- Run | Jun Mat Distress Signals . | . . Communications Jammed . | . . Distress Signals . | . . Times Spotted 19 | . 19 Peak Tracking Total 5 | . 5 Tactical Retreats 2 | . 2 Traps | -11 -10 ------- Run | Jun Mat Traps Triggered . | . . Indirectly . | . . Trap Hack Attempts . | . . Triggered . | . . Disarmed 4 | . 4 Reprogrammed . | . . Reused . | . . Traps Extracted . | . . Installed . | . . Triggered . | . . Machines | -11 -10 ---------- Run | Jun Mat Machines Disabled 1 | . 1 Max in Single Turn 1 | . 1 Machines Repaired . | . . Machines Sabotaged . | . . Overloaded Fab Kills . | . . Hacking | -11 -10 --------- Run | Jun Mat Machines Accessed 3 | . 3 Terminals 3 | . 3 Fabricators . | . . Repair Stations . | . . Recycling Units . | . . Scanalyzers . | . . Garrison Access . | . . Total Hacks 13 | . 13 Successful 6 | . 6 Failed 7 | . 7 Catastrophic 2 | . 2 Database Lockouts . | . . Manual 2 | . 2 Terminals 13 | . 13 Fabricators . | . . Repair Stations . | . . Recycling Units . | . . Scanalyzers . | . . Garrison Access . | . . Terminal Hacks 6 | . 6 Record 3 | . 3 Alert Level 1 | . 1 Locate Traps 1 | . 1 Disarm Traps 1 | . 1 Fabricator Hacks . | . . Repair Station Hacks . | . . Recycling Unit Hacks . | . . Scanalyzer . | . . Garrison Access Hacks . | . . Unauthorized Hacks . | . . Terminals . | . . Fabricators . | . . Repair Stations . | . . Recycling Units . | . . Scanalyzers . | . . Garrison Access . | . . Data Cores Recovered . | . . Used . | . . Hacking Detections 3 | . 3 Full Trace Events 2 | . 2 Feedback Events . | . . Feedback Blocked . | . . Robot Schematics Acquired . | . . Robots Built . | . . Authchips . | . . Time . | . . Total Robot Build Rating . | . . Part Schematics Acquired . | . . Parts Built . | . . Authchips . | . . Time . | . . Total Part Build Rating . | . . Parts Repaired . | . . Time . | . . Parts Recycled . | . . Recycled Matter . | . . Retrieved Matter . | . . Retrieved Components . | . . Parts Scanalyzed . | . . Part Schematics Acquired . | . . Parts Damaged . | . . Bothacking | -11 -10 ------------ Run | Jun Mat Used RIF Installer . | . . Robots Hacked . | . . Non-combat . | . . Combat . | . . Robot Hacks Applied . | . . Relay Couplers Released . | . . Fabnet Peak Effective % . | . . Robots Rewired . | . . Allies Hacked . | . . Hacks Repelled . | . . Allies | -11 -10 -------- Run | Jun Mat Total Allies . | . . Largest Group . | . . Highest-Rated Group . | . . Highest-Rated Ally . | . . Total Orders . | . . Ally Attacks . | . . Total Damage . | . . Kills . | . . Allies Corrupted . | . . Allies Melted . | . . Intel | -11 -10 ------- Run | Jun Mat Robot Analysis Total . | . . Derelict Logs Recovered . | . . Drone Launches . | . . Drone Recoveries . | . . Exploration | -11 -10 ------------- Run | Jun Mat Turns Passed 1457 | 824 633 Spaces Moved 1035 | 584 451 Core 62 | 46 16 Treads 3 | 3 . Legs 144 | . 144 Wheels 719 | 535 184 Hover 106 | . 106 Flight 1 | . 1 Fastest Speed 50 | 50 60 Average Speed 101 | 102 100 Slowest Speed 200 | 160 200 Overloaded Moves . | . . Propulsion Burnouts . | . . Robots Hopped . | . . Cave-ins Triggered 1 | 1 . Exploration Rate (%) 28 | 27 30 Regions Visited 1 Branch Regions . Pre-discovered Areas . | . . Known Exits Taken . | . . Unknown Exits Taken 1 | 1 . Scrap Searched . | . . Spaces Dug 7 | 7 . Terrain Destroyed 15 | 9 6 Melee . | . . Projectile 9 | 9 . AOE 6 | . 6 Terrain Rammed . | . . Walls Destroyed . | . . Machines Disabled . | . . Actions | -11 -10 --------- Run | Jun Mat Total 1262 | 687 575 Wait 22 | 2 20 Move 1033 | 582 451 Hop . | . . Pick Up 30 | 17 13 Fast Attach . | . . Attach 21 | 16 5 Detach 5 | 3 2 Swap 26 | 7 19 Drop 17 | 5 12 Fire 107 | 54 53 Melee . | . . Ram . | . . Kick . | . . Crush . | . . Escape Stasis 1 | 1 . Rewire . | . . Trap . | . . Miscellaneous . | . . Route ------- -11/Junkyard -10/Materials (discovered 1 exit: [*Min]) History --------- Turn | Location | Event 42 | -11/Junkyard | Discovered new exit (range 15) 354 | -11/Junkyard | Crushed by falling debris 825 | -11/Junkyard | Entered Materials 826 | -10/Materials | Build established: Mutant 958 | -10/Materials | Core integrity fell below 50% 1002 | -10/Materials | Discovered new exit (range 7) 1193 | -10/Materials | Core integrity fell below 20% 1458 | -10/Materials | Destroyed by G-34 Mercenary with Small Laser Last Messages --------------- 4x EMP Trap Map updated. 01429_ K-01 Serf collects debris. 01444_ Connecting with Terminal... >>Query(Mines) Deep underground areas newly excavated to provide access to raw materials for processing in the lower levels of [Complex 0b10]. Initially the mining tunnels only rarely experienced hostile [Derelict] activity, not enough to justify allocating significant resources to defense. This has recently changed with the [Infestation], for which the current response is to dispatch garrisoned Demolishers until a more permanent solution can be put in place. >>Alert(Check) Current Alert Level: Low Security >>Traps(Disarm) Disarmed 4 Shock Traps. 01444_ ALERT: Suspicious activity at Terminal M007. Dispatching Investigation squad. 01447_ W-16 Scout destroyed. 01451_ Pressure Siphon disabled. Map ----- +----------------------------------------------------+ | | | | | | | ?????????????????????????????????????????????????? | | ?????????????????????????????????????????????????? | | ?????????????????????????????????????????????????? | | ?????????????????????????????????????????????????? | | ?????????????????????????????????????????????????? | | ?????????????????????????????????????????????????? | | ?????????????????????????????????????????????????? | | ?????????????????????????????????????????????????? | | ?????????????????????????????????????????????????? | | ?????????????????????????????????????????????????? | | ???????????? ???????????????????????????????????? | | ???????????? #####?????????????????????????????? | | ????????????? ????????????????????????????? | | ?????????????? ????????????????????????????? | | ??????????????? gg ???????????????????????????? | | ????????????????#g ?????????#???#??????#??????? | | ????????????????# ???????????????????????????? | | ????????????????# #########????????#?????? ??? | | ????????????????# "T" #? ""????????#???? ? | | ????????????????# #??"???????????????? | | ????????????????+ "%% # ?????#???????????# | | ????????????????# """ #??????????????#???? | | ????????????????# """ @ #??#?#???#???#???? ? | | ????????????????## """ ###############????? | | ?????????????????# a ##???? | | ?????????????????+ ######## #????? | | ?????????????????# ! ######## #????? | | ?????????????????# *%#"T"####### # # #????? | | ?????????????????# !!########### # # ###?#? | | ?????????????????# ?# # # """ # ###### | | ?????????????????# ??# "T" # # """ + | | ?????????????????#?? # """ + + """ #+###### | | ????????????????? ???# # # # # | | ?????????????????????########### ######## # | | ?????????????????????? ???????# "#???# """" # | | ??????????????????????????????# ""#???# """" # | | ??????????????????????????????# ||#???# """"=# | | ?????????????????????#??????### < ""##?## |*# | | ???????????????#??????????????# = ||#???######## | | ?????????????????????? ???????# % ""#?#???#?#?#? | | ??????????????????????????????# "###????????? | | ??????????????????????????#???## ####???##?????? | | ??????????????????????????^??? # #?????????????# | | ?????????????????????????????^ + ##?????""?????? | | ????????????????????^?????"????# #??? ?????????? | | ?????????????????????????????^?# #??????"??????? | | ???????????????????????????????# #?????????????? | +----------------------------------------------------+ Best States ------------- Heat Dissipation 39 Energy Generation 14 Energy Capacity 250 Matter Stores 300 Matter Capacity 400 Sight Range 18 Terrain Scan Range 16 Terrain Scan Density 85 Evasion (%) 55 Recoil Reduction 1 Item Schematics ----------------- None Robot Schematics ------------------ None Fabricated ------------ Nothing Alien Tech Used ----------------- None Achievements -------------- None Challenges ------------ None Game ------ Seed WarpThiefShearcannon Manual? 0 Play Time 00:30:32 Cumulative 12.9 hours Start 2023.09.17 @ 20:47:26 End 2023.09.17 @ 21:22:07 Sessions 1 Manual Loads 0 Difficulty Rogue Special Mode None Game No. 19 Rogue 19 Adventurer 0 Explorer 0 Win Type - Total 0 Types 0/0/0/0/0/0/0/0/0 Lore% 15 Gallery% 24 Achievement% 19 Wizard Run 0 Options --------- ASCII 0 Keyboard 0 Movement Mouse Keybinds 0 Fullscreen 1 Font 16/Terminus Map View 76x50 Tactical HUD 1 Map Filters NONE Filters NONE Steam 1 RUN: 0d09ff38-3a0c-47fe-b52b-529439e6ad44